[Event "Titled Tuesday Blitz June 21 Early 2022"]
[White "Nilssen, Ellen Fredericia"]
[Black "Mestnikov, Aisen"]
[WhiteFideId "1441230"]
[BlackFideId "34130117"]
[WhiteElo "2094"]
[BlackElo "2027"]
[Result "1-0"]
[Round "03"]
[TimeControl "180+1"]
[Date "2022.06.22"]
[WhiteClock "0:00:10"]
[BlackClock "0:00:08"]

1. Nf3 {[%clk 0:03:00]}  Nf6 {[%clk 0:02:57]} 2. b3 {[%clk 0:03:01]}  d5 {[%clk 0:02:57]} 3. Bb2 {[%clk 0:03:01]}  c5 {[%clk 0:02:57]} 4. e3 {[%clk 0:03:01]}  Nc6 {[%clk 0:02:56]} 5. Bb5 {[%clk 0:03:00]}  Bd7 {[%clk 0:02:51]} 6. O-O {[%clk 0:02:51]}  e6 {[%clk 0:02:50]} 7. d4 {[%clk 0:02:51]}  Be7 {[%clk 0:02:48]} 8. c4 {[%clk 0:02:47]}  O-O {[%clk 0:02:46]} 9. cxd5 {[%clk 0:02:44]}  Nxd5 {[%clk 0:02:43]} 10. Nc3 {[%clk 0:02:16]}  Bf6 {[%clk 0:02:39]} 11. Nxd5 {[%clk 0:02:12]}  exd5 {[%clk 0:02:36]} 12. Ba3 {[%clk 0:02:06]}  b6 {[%clk 0:02:33]} 13. Rc1 {[%clk 0:02:04]}  Nb8 {[%clk 0:01:53]} 14. Bxd7 {[%clk 0:01:59]}  Nxd7 {[%clk 0:01:54]} 15. dxc5 {[%clk 0:01:59]}  Nxc5 {[%clk 0:01:50]} 16. Bxc5 {[%clk 0:01:59]}  bxc5 {[%clk 0:01:51]} 17. Rxc5 {[%clk 0:01:59]}  Qb6 {[%clk 0:01:44]} 18. Rxd5 {[%clk 0:01:48]}  Rac8 {[%clk 0:01:39]} 19. Qe2 {[%clk 0:01:42]}  Rc7 {[%clk 0:01:29]} 20. h4 {[%clk 0:01:33]}  Rfc8 {[%clk 0:01:16]} 21. Rfd1 {[%clk 0:01:33]}  h6 {[%clk 0:01:12]} 22. Nd4 {[%clk 0:01:19]}  Bxd4 {[%clk 0:01:03]} 23. R5xd4 {[%clk 0:01:20]}  Rc2 {[%clk 0:01:02]} 24. Qg4 {[%clk 0:01:00]}  Qf6 {[%clk 0:00:56]} 25. R1d2 {[%clk 0:00:52]}  Rc1+ {[%clk 0:00:48]} 26. Kh2 {[%clk 0:00:52]}  R1c2 {[%clk 0:00:39]} 27. h5 {[%clk 0:00:37]}  R2c5 {[%clk 0:00:31]} 28. Rd5 {[%clk 0:00:30]}  Rc1 {[%clk 0:00:27]} 29. Rd6 {[%clk 0:00:20]}  Qe5+ {[%clk 0:00:24]} 30. f4 {[%clk 0:00:15]}  Qxe3 {[%clk 0:00:23]} 31. Rd8+ {[%clk 0:00:15]}  Qe8 {[%clk 0:00:07]} 32. Rxe8+ {[%clk 0:00:13]}  Rxe8 {[%clk 0:00:08]} 33. Rd7 {[%clk 0:00:11]}  Ree1 {[%clk 0:00:07]} 34. Rd8+ {[%clk 0:00:10]}  Kh7 {[%clk 0:00:07]} 35. Qf5+ {[%clk 0:00:10]}  g6 {[%clk 0:00:08]} 36. Qxf7# {[%clk 0:00:10]} 1-0


[Site "https://www.chess.com"]

[Event "Titled Tuesday Blitz June 21 Early 2022"]
[White "Onslow, Alfie"]
[Black "Guz, Ari"]
[WhiteFideId "436976"]
[BlackFideId "2825759"]
[WhiteElo "1885"]
[BlackElo "1913"]
[Result "0-1"]
[Round "03"]
[TimeControl "180+1"]
[Date "2022.06.22"]
[WhiteClock "0:00:01"]
[BlackClock "0:00:28"]

1. e4 {[%clk 0:03:00]}  c5 {[%clk 0:02:58]} 2. Nc3 {[%clk 0:03:00]}  e6 {[%clk 0:02:59]} 3. Nf3 {[%clk 0:02:56]}  a6 {[%clk 0:02:58]} 4. g3 {[%clk 0:02:55]}  b5 {[%clk 0:02:58]} 5. Bg2 {[%clk 0:02:56]}  Bb7 {[%clk 0:02:59]} 6. O-O {[%clk 0:02:51]}  b4 {[%clk 0:02:56]} 7. Na4 {[%clk 0:02:52]}  Bxe4 {[%clk 0:02:56]} 8. d4 {[%clk 0:02:52]}  cxd4 {[%clk 0:02:51]} 9. Qxd4 {[%clk 0:02:51]}  Bc6 {[%clk 0:02:51]} 10. Nb6 {[%clk 0:02:49]}  Ra7 {[%clk 0:02:45]} 11. Bf4 {[%clk 0:02:47]}  Rb7 {[%clk 0:02:37]} 12. Nc4 {[%clk 0:02:43]}  d5 {[%clk 0:02:36]} 13. Nd6+ {[%clk 0:02:10]}  Bxd6 {[%clk 0:02:29]} 14. Qxg7 {[%clk 0:02:10]}  Qf6 {[%clk 0:01:54]} 15. Qxf6 {[%clk 0:02:08]}  Nxf6 {[%clk 0:01:55]} 16. Bxd6 {[%clk 0:02:09]}  Nbd7 {[%clk 0:01:50]} 17. Nd4 {[%clk 0:02:03]}  Bb5 {[%clk 0:01:41]} 18. Nxb5 {[%clk 0:02:01]}  Rxb5 {[%clk 0:01:40]} 19. a3 {[%clk 0:01:48]}  bxa3 {[%clk 0:01:37]} 20. Rxa3 {[%clk 0:01:47]}  Rb6 {[%clk 0:01:27]} 21. Bf4 {[%clk 0:01:30]}  O-O {[%clk 0:01:22]} 22. b3 {[%clk 0:01:30]}  Rc8 {[%clk 0:01:22]} 23. Ra2 {[%clk 0:01:23]}  h5 {[%clk 0:01:13]} 24. Rfa1 {[%clk 0:01:21]}  Rbc6 {[%clk 0:01:06]} 25. c4 {[%clk 0:00:48]}  Nc5 {[%clk 0:00:53]} 26. cxd5 {[%clk 0:00:13]}  Nxd5 {[%clk 0:00:51]} 27. Bxd5 {[%clk 0:00:08]}  exd5 {[%clk 0:00:52]} 28. b4 {[%clk 0:00:08]}  Nd3 {[%clk 0:00:52]} 29. Bd2 {[%clk 0:00:08]}  Rc2 {[%clk 0:00:50]} 30. Rxc2 {[%clk 0:00:06]}  Rxc2 {[%clk 0:00:49]} 31. Be3 {[%clk 0:00:06]}  Nxb4 {[%clk 0:00:48]} 32. Ra4 {[%clk 0:00:06]}  Rb2 {[%clk 0:00:44]} 33. Bc5 {[%clk 0:00:06]}  Nd3 {[%clk 0:00:41]} 34. Bd4 {[%clk 0:00:05]}  Rb4 {[%clk 0:00:40]} 35. Rxb4 {[%clk 0:00:03]}  Nxb4 {[%clk 0:00:41]} 36. Kf1 {[%clk 0:00:04]}  Kh7 {[%clk 0:00:37]} 37. Ke2 {[%clk 0:00:04]}  Kg6 {[%clk 0:00:38]} 38. Kd2 {[%clk 0:00:04]}  Kf5 {[%clk 0:00:38]} 39. Kc3 {[%clk 0:00:04]}  Nc6 {[%clk 0:00:38]} 40. Bc5 {[%clk 0:00:04]}  Ke4 {[%clk 0:00:38]} 41. Bd6 {[%clk 0:00:02]}  Kf3 {[%clk 0:00:34]} 42. Kd3 {[%clk 0:00:02]}  Kxf2 {[%clk 0:00:32]} 43. Bf4 {[%clk 0:00:02]}  Kf3 {[%clk 0:00:30]} 44. Kc3 {[%clk 0:00:01]}  Ke4 {[%clk 0:00:28]} 45. Kd2 {[%clk 0:00:02]}  d4 {[%clk 0:00:29]} 46. Kc2 {[%clk 0:00:03]}  Nb4+ {[%clk 0:00:29]} 47. Kd2 {[%clk 0:00:03]}  Nd5 {[%clk 0:00:30]} 48. Bg5 {[%clk 0:00:02]}  Ne3 {[%clk 0:00:29]} 49. Bh6 {[%clk 0:00:02]}  Nf1+ {[%clk 0:00:30]} 50. Ke2 {[%clk 0:00:03]}  Nxh2 {[%clk 0:00:30]} 51. Bg7 {[%clk 0:00:02]}  d3+ {[%clk 0:00:30]} 52. Kd1 {[%clk 0:00:01]}  Nf1 {[%clk 0:00:29]} 53. Bc3 {[%clk 0:00:02]}  Nxg3 {[%clk 0:00:28]} 54. Be1 {[%clk 0:00:02]}  Nf5 {[%clk 0:00:27]} 55. Kd2 {[%clk 0:00:02]}  h4 {[%clk 0:00:28]} 56. Bf2 {[%clk 0:00:01]}  a5 {[%clk 0:00:28]} 0-1


[Site "https://www.chess.com"]

[Event "Titled Tuesday Blitz June 21 Early 2022"]
[White "Papp, Levente"]
[Black "Topalov, Aleksandar"]
[WhiteFideId "751243"]
[BlackFideId "925659"]
[WhiteElo "2308"]
[BlackElo "2179"]
[Result "0-1"]
[Round "03"]
[TimeControl "180+1"]
[Date "2022.06.22"]
[WhiteClock "0:00:02"]
[BlackClock "0:00:12"]

1. Nf3 {[%clk 0:03:00]}  Nf6 {[%clk 0:02:59]} 2. g3 {[%clk 0:03:01]}  c5 {[%clk 0:02:58]} 3. Bg2 {[%clk 0:03:00]}  Nc6 {[%clk 0:02:58]} 4. O-O {[%clk 0:03:00]}  g6 {[%clk 0:02:59]} 5. e3 {[%clk 0:02:56]}  Bg7 {[%clk 0:02:59]} 6. c4 {[%clk 0:02:55]}  O-O {[%clk 0:02:59]} 7. d4 {[%clk 0:02:56]}  d6 {[%clk 0:02:57]} 8. Nc3 {[%clk 0:02:54]}  a6 {[%clk 0:02:57]} 9. b3 {[%clk 0:02:45]}  Rb8 {[%clk 0:02:55]} 10. Qe2 {[%clk 0:02:37]}  Bg4 {[%clk 0:02:52]} 11. d5 {[%clk 0:02:32]}  Ne5 {[%clk 0:02:52]} 12. Bb2 {[%clk 0:02:23]}  b5 {[%clk 0:02:52]} 13. Rab1 {[%clk 0:02:12]}  Nfd7 {[%clk 0:02:43]} 14. Ba1 {[%clk 0:01:52]}  Qa5 {[%clk 0:02:35]} 15. Ne4 {[%clk 0:01:46]}  bxc4 {[%clk 0:02:19]} 16. bxc4 {[%clk 0:01:33]}  Qa4 {[%clk 0:01:56]} 17. h3 {[%clk 0:00:53]}  Bxf3 {[%clk 0:01:51]} 18. Bxf3 {[%clk 0:00:53]}  Qxc4 {[%clk 0:01:51]} 19. Qxc4 {[%clk 0:00:52]}  Nxc4 {[%clk 0:01:51]} 20. Bxg7 {[%clk 0:00:52]}  Kxg7 {[%clk 0:01:51]} 21. Be2 {[%clk 0:00:52]}  Na3 {[%clk 0:01:45]} 22. Rxb8 {[%clk 0:00:50]}  Rxb8 {[%clk 0:01:44]} 23. Bxa6 {[%clk 0:00:51]}  Rb2 {[%clk 0:01:41]} 24. Nc3 {[%clk 0:00:30]}  Rc2 {[%clk 0:01:14]} 25. Nb5 {[%clk 0:00:28]}  Rxa2 {[%clk 0:01:13]} 26. e4 {[%clk 0:00:15]}  Ne5 {[%clk 0:01:08]} 27. Nxa3 {[%clk 0:00:12]}  Rxa3 {[%clk 0:01:08]} 28. Bb5 {[%clk 0:00:11]}  Rb3 {[%clk 0:01:03]} 29. Ba6 {[%clk 0:00:10]}  Nf3+ {[%clk 0:00:59]} 30. Kg2 {[%clk 0:00:09]}  Ra3 {[%clk 0:00:54]} 31. Rc1 {[%clk 0:00:06]}  Nh4+ {[%clk 0:00:46]} 32. gxh4 {[%clk 0:00:07]}  Rxa6 {[%clk 0:00:46]} 33. f3 {[%clk 0:00:05]}  Kf6 {[%clk 0:00:45]} 34. Kg3 {[%clk 0:00:03]}  Ra4 {[%clk 0:00:41]} 35. Kf4 {[%clk 0:00:03]}  h6 {[%clk 0:00:38]} 36. Rc3 {[%clk 0:00:03]}  Ra1 {[%clk 0:00:36]} 37. Rb3 {[%clk 0:00:01]}  Rg1 {[%clk 0:00:33]} 38. Rb6 {[%clk 0:00:02]}  g5+ {[%clk 0:00:32]} 39. hxg5+ {[%clk 0:00:03]}  hxg5+ {[%clk 0:00:32]} 40. Ke3 {[%clk 0:00:04]}  Rg3 {[%clk 0:00:32]} 41. Rb8 {[%clk 0:00:02]}  Rxh3 {[%clk 0:00:32]} 42. Rg8 {[%clk 0:00:02]}  Rh2 {[%clk 0:00:27]} 43. Rc8 {[%clk 0:00:02]}  Rh3 {[%clk 0:00:25]} 44. Kf2 {[%clk 0:00:03]}  Rh2+ {[%clk 0:00:21]} 45. Ke3 {[%clk 0:00:03]}  Rc2 {[%clk 0:00:19]} 46. Rh8 {[%clk 0:00:02]}  Kg6 {[%clk 0:00:18]} 47. Rg8+ {[%clk 0:00:02]}  Kf6 {[%clk 0:00:18]} 48. Rh8 {[%clk 0:00:03]}  Rc3+ {[%clk 0:00:16]} 49. Kf2 {[%clk 0:00:03]}  c4 {[%clk 0:00:15]} 50. Rh6+ {[%clk 0:00:03]}  Ke5 {[%clk 0:00:14]} 51. Rh7 {[%clk 0:00:03]}  Kf6 {[%clk 0:00:14]} 52. Rh6+ {[%clk 0:00:04]}  Kg7 {[%clk 0:00:15]} 53. Rh1 {[%clk 0:00:04]}  Rc2+ {[%clk 0:00:14]} 54. Ke3 {[%clk 0:00:04]}  c3 {[%clk 0:00:14]} 55. Kd3 {[%clk 0:00:04]}  Rf2 {[%clk 0:00:14]} 56. Kxc3 {[%clk 0:00:04]}  Rxf3+ {[%clk 0:00:14]} 57. Kd4 {[%clk 0:00:05]}  Rf4 {[%clk 0:00:14]} 58. Ra1 {[%clk 0:00:04]}  f5 {[%clk 0:00:14]} 59. Ra7 {[%clk 0:00:04]}  Rxe4+ {[%clk 0:00:14]} 60. Kd3 {[%clk 0:00:04]}  Kf6 {[%clk 0:00:14]} 61. Ra8 {[%clk 0:00:05]}  g4 {[%clk 0:00:14]} 62. Rg8 {[%clk 0:00:04]}  Ke5 {[%clk 0:00:13]} 63. Rg5 {[%clk 0:00:05]}  Kxd5 {[%clk 0:00:12]} 64. Rxf5+ {[%clk 0:00:05]}  Re5 {[%clk 0:00:12]} 65. Rf4 {[%clk 0:00:06]}  Rg5 {[%clk 0:00:12]} 66. Rd4+ {[%clk 0:00:06]}  Ke5 {[%clk 0:00:12]} 67. Re4+ {[%clk 0:00:06]}  Kf6 {[%clk 0:00:13]} 68. Rf4+ {[%clk 0:00:06]}  Kg6 {[%clk 0:00:11]} 69. Ke4 {[%clk 0:00:07]}  e5 {[%clk 0:00:11]} 70. Rf1 {[%clk 0:00:06]}  g3 {[%clk 0:00:12]} 71. Kf3 {[%clk 0:00:06]}  g2 {[%clk 0:00:12]} 72. Rg1 {[%clk 0:00:06]}  Kf5 {[%clk 0:00:12]} 73. Ke3 {[%clk 0:00:06]}  d5 {[%clk 0:00:13]} 74. Kf3 {[%clk 0:00:06]}  e4+ {[%clk 0:00:12]} 75. Ke3 {[%clk 0:00:06]}  Ke5 {[%clk 0:00:12]} 76. Kf2 {[%clk 0:00:05]}  d4 {[%clk 0:00:12]} 77. Ke2 {[%clk 0:00:06]}  Kf4 {[%clk 0:00:11]} 78. Kf2 {[%clk 0:00:06]}  e3+ {[%clk 0:00:12]} 79. Ke2 {[%clk 0:00:06]}  Ke4 {[%clk 0:00:12]} 80. Ke1 {[%clk 0:00:06]}  d3 {[%clk 0:00:12]} 81. Kd1 {[%clk 0:00:04]}  Ra5 {[%clk 0:00:12]} 82. Kc1 {[%clk 0:00:02]}  Ra1+ {[%clk 0:00:12]} 0-1


[Site "https://www.chess.com"]

[Event "Titled Tuesday Blitz June 21 Early 2022"]
[White "Pein, Jonathan"]
[Black "Lopez Del Alamo, Antonio"]
[WhiteFideId "417092"]
[BlackFideId "2227339"]
[WhiteElo "2140"]
[BlackElo "2089"]
[Result "1-0"]
[Round "03"]
[TimeControl "180+1"]
[Date "2022.06.22"]
[WhiteClock "0:00:14"]
[BlackClock "0:01:20"]

1. c4 {[%clk 0:03:00]}  Nf6 {[%clk 0:02:57]} 2. Nc3 {[%clk 0:03:00]}  g6 {[%clk 0:02:45]} 3. e4 {[%clk 0:02:59]}  d6 {[%clk 0:02:44]} 4. g3 {[%clk 0:03:00]}  Bg7 {[%clk 0:02:44]} 5. Bg2 {[%clk 0:03:01]}  c5 {[%clk 0:02:44]} 6. Nge2 {[%clk 0:03:01]}  O-O {[%clk 0:02:44]} 7. d4 {[%clk 0:02:58]}  cxd4 {[%clk 0:02:43]} 8. Nxd4 {[%clk 0:02:59]}  Nc6 {[%clk 0:02:39]} 9. Nxc6 {[%clk 0:02:59]}  bxc6 {[%clk 0:02:39]} 10. e5 {[%clk 0:03:00]}  dxe5 {[%clk 0:02:37]} 11. Qxd8 {[%clk 0:03:00]}  Rxd8 {[%clk 0:02:38]} 12. Bxc6 {[%clk 0:03:01]}  Rb8 {[%clk 0:02:38]} 13. O-O {[%clk 0:03:00]}  Be6 {[%clk 0:02:31]} 14. b3 {[%clk 0:02:53]}  Ne8 {[%clk 0:02:23]} 15. Be3 {[%clk 0:02:40]}  a6 {[%clk 0:02:19]} 16. Rad1 {[%clk 0:02:38]}  Nd6 {[%clk 0:02:18]} 17. Bd5 {[%clk 0:02:02]}  Bg4 {[%clk 0:02:03]} 18. f3 {[%clk 0:02:00]}  Bh3 {[%clk 0:02:02]} 19. Rfe1 {[%clk 0:01:56]}  Nf5 {[%clk 0:02:02]} 20. Ba7 {[%clk 0:01:56]}  Rbc8 {[%clk 0:02:01]} 21. Ne4 {[%clk 0:01:35]}  Nd4 {[%clk 0:01:55]} 22. Nf2 {[%clk 0:01:21]}  Bf5 {[%clk 0:01:40]} 23. Bxd4 {[%clk 0:01:18]}  exd4 {[%clk 0:01:37]} 24. Rxe7 {[%clk 0:01:17]}  Bc2 {[%clk 0:01:33]} 25. Rd2 {[%clk 0:01:06]}  Bb1 {[%clk 0:01:31]} 26. Rxf7 {[%clk 0:00:51]}  Rxd5 {[%clk 0:01:30]} 27. Rxg7+ {[%clk 0:00:51]}  Kxg7 {[%clk 0:01:31]} 28. cxd5 {[%clk 0:00:52]}  Rc2 {[%clk 0:01:28]} 29. Rxd4 {[%clk 0:00:43]}  Kf8 {[%clk 0:01:27]} 30. d6 {[%clk 0:00:33]}  Ke8 {[%clk 0:01:27]} 31. d7+ {[%clk 0:00:28]}  Kd8 {[%clk 0:01:27]} 32. f4 {[%clk 0:00:16]}  Rxa2 {[%clk 0:01:23]} 33. Ng4 {[%clk 0:00:17]}  Bf5 {[%clk 0:01:22]} 34. Ne5 {[%clk 0:00:16]}  Bh3 {[%clk 0:01:20]} 35. Nf7+ {[%clk 0:00:15]}  Ke7 {[%clk 0:01:19]} 36. d8=Q+ {[%clk 0:00:15]}  Kxf7 {[%clk 0:01:19]} 37. Rd7+ {[%clk 0:00:15]}  Ke6 {[%clk 0:01:19]} 38. Qe7+ {[%clk 0:00:14]}  Kf5 {[%clk 0:01:20]} 39. Rd5+ {[%clk 0:00:13]}  Kg4 {[%clk 0:01:20]} 40. Qe6+ {[%clk 0:00:13]}  Kf3 {[%clk 0:01:20]} 41. Rd3# {[%clk 0:00:14]} 1-0


[Site "https://www.chess.com"]

[Event "Titled Tuesday Blitz June 21 Early 2022"]
[White "Petrova, Irina"]
[Black "Mitrovic, Darko R"]
[WhiteFideId "14124122"]
[BlackFideId "927023"]
[WhiteElo "1993"]
[BlackElo "2150"]
[Result "0-1"]
[Round "03"]
[TimeControl "180+1"]
[Date "2022.06.22"]
[WhiteClock "0:00:27"]
[BlackClock "0:00:12"]

1. e4 {[%clk 0:03:00]}  e6 {[%clk 0:02:59]} 2. d4 {[%clk 0:03:00]}  d5 {[%clk 0:02:59]} 3. Nc3 {[%clk 0:02:59]}  Bb4 {[%clk 0:02:59]} 4. Ne2 {[%clk 0:02:59]}  Nf6 {[%clk 0:02:56]} 5. Bg5 {[%clk 0:02:55]}  h6 {[%clk 0:02:51]} 6. Bxf6 {[%clk 0:02:53]}  Qxf6 {[%clk 0:02:51]} 7. a3 {[%clk 0:02:54]}  Bxc3+ {[%clk 0:02:49]} 8. Nxc3 {[%clk 0:02:53]}  c6 {[%clk 0:02:42]} 9. e5 {[%clk 0:02:50]}  Qe7 {[%clk 0:02:41]} 10. Bd3 {[%clk 0:02:49]}  a6 {[%clk 0:02:39]} 11. Ne2 {[%clk 0:02:49]}  c5 {[%clk 0:02:34]} 12. c3 {[%clk 0:02:49]}  O-O {[%clk 0:02:31]} 13. O-O {[%clk 0:02:48]}  Bd7 {[%clk 0:02:25]} 14. Rc1 {[%clk 0:02:48]}  Bb5 {[%clk 0:02:12]} 15. Bxb5 {[%clk 0:02:47]}  axb5 {[%clk 0:02:12]} 16. dxc5 {[%clk 0:02:47]}  Qxc5 {[%clk 0:02:11]} 17. Nd4 {[%clk 0:02:47]}  Nc6 {[%clk 0:02:07]} 18. f4 {[%clk 0:02:44]}  Nxd4 {[%clk 0:02:02]} 19. cxd4 {[%clk 0:02:43]}  Qb6 {[%clk 0:02:00]} 20. Qd3 {[%clk 0:02:42]}  b4 {[%clk 0:01:47]} 21. Rc5 {[%clk 0:02:32]}  Rfc8 {[%clk 0:01:36]} 22. Rfc1 {[%clk 0:02:24]}  Rxc5 {[%clk 0:01:32]} 23. Rxc5 {[%clk 0:02:25]}  bxa3 {[%clk 0:01:29]} 24. bxa3 {[%clk 0:02:26]}  g6 {[%clk 0:01:16]} 25. h4 {[%clk 0:02:18]}  h5 {[%clk 0:01:12]} 26. f5 {[%clk 0:02:10]}  exf5 {[%clk 0:00:59]} 27. Rxd5 {[%clk 0:02:08]}  Qb2 {[%clk 0:00:55]} 28. Rb5 {[%clk 0:01:35]}  Qc1+ {[%clk 0:00:54]} 29. Kh2 {[%clk 0:01:32]}  Rxa3 {[%clk 0:00:50]} 30. Qf1 {[%clk 0:01:15]}  Qe3 {[%clk 0:00:42]} 31. Rxb7 {[%clk 0:00:55]}  Qxd4 {[%clk 0:00:35]} 32. e6 {[%clk 0:00:39]}  Qxh4+ {[%clk 0:00:31]} 33. Kg1 {[%clk 0:00:37]}  Qd4+ {[%clk 0:00:28]} 34. Kh2 {[%clk 0:00:36]}  Qe5+ {[%clk 0:00:25]} 35. Kh1 {[%clk 0:00:35]}  Qxe6 {[%clk 0:00:22]} 36. Qb1 {[%clk 0:00:30]}  Qe5 {[%clk 0:00:16]} 37. Rb8+ {[%clk 0:00:29]}  Kg7 {[%clk 0:00:15]} 38. Rb2 {[%clk 0:00:27]}  Re3 {[%clk 0:00:12]} 0-1


[Site "https://www.chess.com"]

[Event "Titled Tuesday Blitz June 21 Early 2022"]
[White "Piesik, Piotr"]
[Black "Matyukov, Petr"]
[WhiteFideId "1136194"]
[BlackFideId "4103688"]
[WhiteElo "2247"]
[BlackElo "2278"]
[Result "0-1"]
[Round "03"]
[TimeControl "180+1"]
[Date "2022.06.22"]
[WhiteClock "0:01:05"]
[BlackClock "0:01:29"]

1. Nf3 {[%clk 0:02:57]}  c5 {[%clk 0:03:00]} 2. e4 {[%clk 0:02:56]}  g6 {[%clk 0:03:00]} 3. g3 {[%clk 0:02:55]}  Bg7 {[%clk 0:03:00]} 4. Bg2 {[%clk 0:02:55]}  Nc6 {[%clk 0:03:00]} 5. O-O {[%clk 0:02:56]}  e6 {[%clk 0:03:00]} 6. c3 {[%clk 0:02:56]}  Nge7 {[%clk 0:02:58]} 7. d4 {[%clk 0:02:55]}  cxd4 {[%clk 0:02:57]} 8. cxd4 {[%clk 0:02:56]}  d5 {[%clk 0:02:57]} 9. e5 {[%clk 0:02:56]}  O-O {[%clk 0:02:57]} 10. Nc3 {[%clk 0:02:56]}  a6 {[%clk 0:02:55]} 11. Na4 {[%clk 0:02:51]}  Nf5 {[%clk 0:02:51]} 12. Bg5 {[%clk 0:02:48]}  Qa5 {[%clk 0:02:48]} 13. Bd2 {[%clk 0:02:45]}  Qc7 {[%clk 0:02:44]} 14. Rc1 {[%clk 0:02:45]}  b5 {[%clk 0:02:42]} 15. Nc5 {[%clk 0:02:45]}  Qb6 {[%clk 0:02:39]} 16. Be3 {[%clk 0:02:42]}  Nxe3 {[%clk 0:02:35]} 17. fxe3 {[%clk 0:02:43]}  f6 {[%clk 0:02:35]} 18. Bh3 {[%clk 0:02:26]}  fxe5 {[%clk 0:02:29]} 19. Nxe6 {[%clk 0:02:23]}  exd4 {[%clk 0:02:11]} 20. Nfxd4 {[%clk 0:02:01]}  Nxd4 {[%clk 0:01:55]} 21. Rxf8+ {[%clk 0:01:43]}  Bxf8 {[%clk 0:01:53]} 22. Nxf8 {[%clk 0:01:39]}  Bxh3 {[%clk 0:01:49]} 23. Nxh7 {[%clk 0:01:09]}  Kxh7 {[%clk 0:01:36]} 24. exd4 {[%clk 0:01:09]}  Rf8 {[%clk 0:01:31]} 25. Qe2 {[%clk 0:01:06]}  Qxd4+ {[%clk 0:01:30]} 26. Kh1 {[%clk 0:01:05]}  Qe4+ {[%clk 0:01:29]} 0-1


[Site "https://www.chess.com"]

[Event "Titled Tuesday Blitz June 21 Early 2022"]
[White "Polster, Christian"]
[Black "Yurovskykh, Oleksandr"]
[WhiteFideId "12965081"]
[BlackFideId "14134020"]
[WhiteElo "2273"]
[BlackElo "2292"]
[Result "0-1"]
[Round "03"]
[TimeControl "180+1"]
[Date "2022.06.22"]
[WhiteClock "0:00:09"]
[BlackClock "0:00:53"]

1. e4 {[%clk 0:02:39]}  d5 {[%clk 0:02:13]} 2. exd5 {[%clk 0:02:38]}  Qxd5 {[%clk 0:02:12]} 3. Nc3 {[%clk 0:02:39]}  Qd8 {[%clk 0:02:10]} 4. Bc4 {[%clk 0:02:38]}  c5 {[%clk 0:02:09]} 5. Nf3 {[%clk 0:02:22]}  Nc6 {[%clk 0:02:09]} 6. d3 {[%clk 0:02:06]}  Nf6 {[%clk 0:02:06]} 7. Be3 {[%clk 0:01:50]}  e6 {[%clk 0:02:03]} 8. O-O {[%clk 0:01:43]}  Be7 {[%clk 0:01:59]} 9. d4 {[%clk 0:01:43]}  cxd4 {[%clk 0:01:59]} 10. Nxd4 {[%clk 0:01:44]}  Nxd4 {[%clk 0:01:57]} 11. Qxd4 {[%clk 0:01:37]}  Qxd4 {[%clk 0:01:54]} 12. Bxd4 {[%clk 0:01:38]}  a6 {[%clk 0:01:54]} 13. a4 {[%clk 0:01:30]}  Bd7 {[%clk 0:01:52]} 14. Rfe1 {[%clk 0:01:14]}  Bc6 {[%clk 0:01:51]} 15. Rad1 {[%clk 0:01:00]}  O-O-O {[%clk 0:01:42]} 16. Bb6 {[%clk 0:00:39]}  Rxd1 {[%clk 0:01:41]} 17. Rxd1 {[%clk 0:00:40]}  Nd7 {[%clk 0:01:40]} 18. Be3 {[%clk 0:00:37]}  Bf6 {[%clk 0:01:33]} 19. Bb3 {[%clk 0:00:32]}  Bxc3 {[%clk 0:01:32]} 20. bxc3 {[%clk 0:00:32]}  Rd8 {[%clk 0:01:32]} 21. Kf1 {[%clk 0:00:29]}  Nf6 {[%clk 0:01:27]} 22. Rxd8+ {[%clk 0:00:26]}  Kxd8 {[%clk 0:01:28]} 23. f3 {[%clk 0:00:26]}  Nd7 {[%clk 0:01:24]} 24. Ke2 {[%clk 0:00:25]}  a5 {[%clk 0:01:22]} 25. Kd3 {[%clk 0:00:22]}  b6 {[%clk 0:01:14]} 26. Bd4 {[%clk 0:00:17]}  e5 {[%clk 0:01:07]} 27. Bf2 {[%clk 0:00:15]}  f6 {[%clk 0:01:07]} 28. Kc4 {[%clk 0:00:09]}  Kc7 {[%clk 0:01:05]} 29. Kd3 {[%clk 0:00:07]}  Nc5+ {[%clk 0:00:59]} 30. Kc4 {[%clk 0:00:04]}  Kd6 {[%clk 0:00:59]} 31. Be3 {[%clk 0:00:02]}  g5 {[%clk 0:00:50]} 32. Bf2 {[%clk 0:00:02]}  h6 {[%clk 0:00:50]} 33. Be3 {[%clk 0:00:02]}  f5 {[%clk 0:00:49]} 34. Bf2 {[%clk 0:00:02]}  f4 {[%clk 0:00:49]} 35. Bg1 {[%clk 0:00:02]}  e4 {[%clk 0:00:48]} 36. fxe4 {[%clk 0:00:02]}  Bxe4 {[%clk 0:00:48]} 37. Bxc5+ {[%clk 0:00:01]}  bxc5 {[%clk 0:00:48]} 38. Kb5 {[%clk 0:00:02]}  Bxg2 {[%clk 0:00:47]} 39. Kxa5 {[%clk 0:00:02]}  f3 {[%clk 0:00:47]} 40. Bc4 {[%clk 0:00:02]}  f2 {[%clk 0:00:48]} 41. Kb6 {[%clk 0:00:03]}  f1=Q {[%clk 0:00:48]} 42. Bxf1 {[%clk 0:00:03]}  Bxf1 {[%clk 0:00:49]} 43. a5 {[%clk 0:00:03]}  g4 {[%clk 0:00:49]} 44. a6 {[%clk 0:00:02]}  Bxa6 {[%clk 0:00:49]} 45. Kxa6 {[%clk 0:00:03]}  h5 {[%clk 0:00:50]} 46. Kb5 {[%clk 0:00:03]}  Kd5 {[%clk 0:00:50]} 47. c4+ {[%clk 0:00:03]}  Kd6 {[%clk 0:00:50]} 48. Ka4 {[%clk 0:00:04]}  h4 {[%clk 0:00:50]} 49. Kb3 {[%clk 0:00:04]}  g3 {[%clk 0:00:51]} 50. Kc3 {[%clk 0:00:05]}  gxh2 {[%clk 0:00:51]} 51. Kd3 {[%clk 0:00:06]}  h1=Q {[%clk 0:00:52]} 52. Ke3 {[%clk 0:00:07]}  h3 {[%clk 0:00:52]} 53. Ke2 {[%clk 0:00:07]}  h2 {[%clk 0:00:53]} 54. Kd3 {[%clk 0:00:08]}  Qg1 {[%clk 0:00:53]} 55. Kd2 {[%clk 0:00:09]}  Qd4+ {[%clk 0:00:53]} 56. Kc1 {[%clk 0:00:09]}  h1=Q# {[%clk 0:00:53]} 0-1


[Site "https://www.chess.com"]

[Event "Titled Tuesday Blitz June 21 Early 2022"]
[White "Pulpan, Jakub"]
[Black "Garcia Cuenca, Victor"]
[WhiteFideId "302759"]
[BlackFideId "2250829"]
[WhiteElo "2495"]
[BlackElo "2317"]
[Result "1-0"]
[Round "03"]
[TimeControl "180+1"]
[Date "2022.06.22"]
[WhiteClock "0:01:47"]
[BlackClock "0:01:40"]

1. a3 {[%clk 0:02:47]}  d5 {[%clk 0:02:58]} 2. d4 {[%clk 0:02:40]}  Nf6 {[%clk 0:02:56]} 3. c4 {[%clk 0:02:38]}  e6 {[%clk 0:02:56]} 4. e3 {[%clk 0:02:38]}  Be7 {[%clk 0:02:55]} 5. Nf3 {[%clk 0:02:36]}  O-O {[%clk 0:02:55]} 6. Bd3 {[%clk 0:02:29]}  b6 {[%clk 0:02:56]} 7. O-O {[%clk 0:02:28]}  Ba6 {[%clk 0:02:56]} 8. Nbd2 {[%clk 0:02:22]}  Nbd7 {[%clk 0:02:52]} 9. b4 {[%clk 0:02:19]}  dxc4 {[%clk 0:02:47]} 10. Nxc4 {[%clk 0:02:18]}  Bb7 {[%clk 0:02:46]} 11. Bb2 {[%clk 0:02:19]}  Be4 {[%clk 0:02:39]} 12. Bxe4 {[%clk 0:02:17]}  Nxe4 {[%clk 0:02:39]} 13. Qd3 {[%clk 0:02:18]}  Nd6 {[%clk 0:02:26]} 14. Nce5 {[%clk 0:02:13]}  Nxe5 {[%clk 0:02:22]} 15. Nxe5 {[%clk 0:02:14]}  f6 {[%clk 0:02:07]} 16. Nc6 {[%clk 0:02:12]}  Qd7 {[%clk 0:02:08]} 17. Rac1 {[%clk 0:02:12]}  b5 {[%clk 0:02:02]} 18. a4 {[%clk 0:02:04]}  a6 {[%clk 0:02:02]} 19. axb5 {[%clk 0:02:01]}  axb5 {[%clk 0:02:03]} 20. Na5 {[%clk 0:02:02]}  Rfc8 {[%clk 0:01:58]} 21. Rc2 {[%clk 0:01:53]}  c6 {[%clk 0:01:58]} 22. Rfc1 {[%clk 0:01:52]}  Ra6 {[%clk 0:01:41]} 23. h3 {[%clk 0:01:49]}  Bd8 {[%clk 0:01:41]} 24. Nb3 {[%clk 0:01:49]}  Bb6 {[%clk 0:01:40]} 25. Nc5 {[%clk 0:01:47]} 1-0


[Site "https://www.chess.com"]